bitfinex-derivatives/quotes_SOLF0:USTF0_20260210
["timestamp","ask_amount","ask_price","bid_price","bid_amount"]
[1770713040823,10.6521,84.577,84.541,9.93652601]
[1770713041610,20.80255256,84.577,84.541,9.93652601]
[1770713042821,10.6525,84.573,84.541,9.93652601]
[1770713043018,10.6525,84.573,84.54,3.57724046]
[1770713043019,10.15045256,84.572,84.54,3.57724046]
[1770713043221,10.15045256,84.572,84.53,3.57724046]
[1770713043425,8.0,84.588,84.51,3.57724046]
[1770713043426,10.15045256,84.569,84.51,3.57724046]
[1770713043620,10.15045256,84.569,84.507,9.93652601]
[1770713043922,35.5,84.587,84.5,3.57724046]
[1770713043923,20.80775256,84.535,84.5,3.57724046]
[1770713044518,10.6576,84.533,84.5,3.57724046]
[1770713044726,20.80805256,84.533,84.495,9.93652601]
[1770713046824,20.80805256,84.533,84.5,3.57724046]
[1770713047223,35.5,84.581,84.49,3.57724046]
[1770713047224,10.6585,84.526,84.49,3.57724046]
[1770713048327,10.6569,84.539,84.51,3.57724046]
[1770713050819,10.15045256,84.53,84.49,3.57724046]
[1770713051224,10.15045256,84.53,84.48,3.57724046]
[1770713051618,10.15045256,84.53,84.49,4.046e-05]
[1770713051826,10.15045256,84.53,84.47,3.57724046]
[1770713051827,10.15045256,84.513,84.47,3.57724046]
[1770713052432,3.57724046,84.53,84.47,3.57724046]
[1770713052433,20.81085256,84.511,84.47,3.57724046]
[1770713052831,20.81085256,84.511,84.48,3.57724046]
[1770713053428,10.15045256,84.51,84.48,3.57724046]
[1770713053731,10.15045256,84.51,84.47,3.57724046]
[1770713054335,10.15045256,84.51,84.48,3.57724046]
[1770713055033,10.15045256,84.51,84.471,9.93652601]
[1770713057534,10.15045256,84.51,84.47,3.57724046]
[1770713057736,10.15045256,84.508,84.46,3.57724046]
[1770713058236,10.6625,84.495,84.46,3.57724046]
[1770713059230,20.81345256,84.49,84.458,227.52]
[1770713060428,9.41523024,84.518,84.47,3.57724046]
[1770713060737,9.41523024,84.518,84.471,9.97378936]
[1770713061339,10.6596,84.517,84.471,9.97378936]
[1770713061540,10.6596,84.517,84.48,3.57724046]
[1770713061842,10.6596,84.517,84.481,9.66911708]
[1770713063332,10.6596,84.517,84.49,3.57724046]
[1770713063738,9.56020047,84.542,84.5,3.57724046]
[1770713064144,9.56020047,84.542,84.494,9.66911708]
[1770713064746,10.6574,84.535,84.494,9.66911708]
[1770713065647,10.6574,84.535,84.51,3.57724046]
[1770713066242,10.6574,84.535,84.5,13.24635754]
[1770713066841,20.21760047,84.535,84.5,3.57724046]
[1770713067042,10.658,84.53,84.493,183.78]
[1770713069336,20.21820047,84.53,84.493,183.78]
[1770713069545,9.56020047,84.525,84.493,164.0554]
[1770713069736,9.56020047,84.525,84.48,3.57724046]
[1770713069940,9.56020047,84.525,84.48,13.24635754]
[1770713071452,9.56020047,84.525,84.481,9.66911708]
[1770713071847,10.659,84.522,84.481,9.66911708]
[1770713072251,10.659,84.522,84.432,14.6784335]
[1770713072252,9.56020047,84.559,84.511,9.66911708]
[1770713072448,9.56020047,84.559,84.52,13.24635754]
[1770713072647,9.56020047,84.559,84.53,3.57724046]
[1770713072847,9.56020047,84.559,84.53,3.58268364]
[1770713073348,10.6537,84.564,84.53,3.58268364]
[1770713073549,9.56020047,84.572,84.53,3.58268364]
[1770713073750,9.56020047,84.603,84.56,3.58268364]
[1770713073941,9.56020047,84.603,84.487,201.3741]
[1770713073942,9.56020047,84.624,84.57,3.58268364]
[1770713074148,9.56020047,84.619,84.56,3.58268364]
[1770713074846,3.58268364,84.6,84.55,3.58268364]
[1770713075051,9.56020047,84.599,84.55,3.58268364]
[1770713075755,9.56020047,84.598,84.55,3.58268364]
[1770713077254,9.56020047,84.609,84.57,3.58268364]
[1770713078352,9.56020047,84.609,84.564,9.66911708]
[1770713079149,9.56020047,84.609,84.57,3.58268364]
[1770713079545,9.56020047,84.609,84.564,9.66911708]
[1770713081753,9.56020047,84.609,84.57,3.58268364]
[1770713083255,9.56020047,84.609,84.564,9.66911708]
[1770713083757,9.56020047,84.609,84.57,3.58268364]
[1770713084651,9.56020047,84.626,84.571,9.66911708]
[1770713084960,9.56020047,84.626,84.59,3.58268364]
[1770713085261,9.56020047,84.626,84.584,9.66911708]
[1770713085853,9.56020047,84.623,84.58,3.58268364]
[1770713086449,10.6478,84.611,84.58,3.58268364]
[1770713086662,10.6478,84.611,84.571,9.66911708]
[1770713087355,9.56020047,84.61,84.571,9.66911708]
[1770713087754,9.56020047,84.603,84.561,9.66911708]
[1770713094570,10.6489,84.602,84.561,9.66911708]
[1770713095269,20.62637731,84.602,84.561,9.66911708]
[1770713095470,9.97747731,84.601,84.561,9.66911708]
[1770713099865,9.97747731,84.59,84.55,3.57966785]
[1770713100472,9.97747731,84.58,84.54,3.57966785]
[1770713100673,9.97747731,84.58,84.537,9.85856937]
[1770713101273,9.97747731,84.608,84.561,9.85856937]
[1770713101467,9.97747731,84.608,84.57,3.57966785]
[1770713103176,9.97747731,84.608,84.57,13.43823722]
[1770713103373,9.97747731,84.608,84.58,3.57966785]
[1770713103576,9.97747731,84.629,84.58,3.57966785]
[1770713103976,9.97747731,84.629,84.57,9.85856937]
[1770713103977,9.97747731,84.613,84.57,3.57966785]
[1770713104474,10.6481,84.609,84.57,3.57966785]
[1770713106480,10.6481,84.609,84.58,3.57966785]
[1770713107780,9.97747731,84.613,84.58,3.57966785]
[1770713108177,9.97747731,84.613,84.573,9.85856937]
[1770713109784,10.6477,84.612,84.573,9.85856937]
[1770713111578,8.0,84.629,84.573,9.85856937]
[1770713111579,9.97747731,84.608,84.573,9.85856937]
[1770713112379,9.97747731,84.608,84.562,9.85856937]
[1770713112576,9.97747731,84.608,84.57,3.57966785]
[1770713112782,10.6484,84.606,84.57,3.57966785]
[1770713113080,9.97747731,84.605,84.562,9.85856937]
[1770713113680,9.97747731,84.605,84.561,9.85856937]
[1770713114081,9.97747731,84.605,84.56,13.43823722]
[1770713114282,9.97747731,84.605,84.561,9.85856937]
[1770713114682,10.649,84.602,84.561,9.85856937]
[1770713114887,10.649,84.602,84.57,3.57966785]
[1770713116088,9.97747731,84.605,84.57,3.57966785]
[1770713116591,10.6478,84.611,84.58,3.57966785]
[1770713119983,10.6478,84.611,84.571,9.85856937]
[1770713121385,10.6478,84.611,84.58,3.57966785]
[1770713122085,20.49684166,84.611,84.58,3.57966785]
[1770713123191,20.49434166,84.631,84.6,3.57966785]
[1770713123690,9.84904166,84.63,84.584,10.08641957]
[1770713123987,9.84904166,84.627,84.59,3.57966785]
[1770713126388,9.84904166,84.627,84.583,10.6512]
[1770713126389,9.84904166,84.627,84.6,3.57966785]
[1770713126595,9.84904166,84.636,84.6,3.57966785]
[1770713130590,10.6447,84.635,84.6,3.57966785]
[1770713131196,9.84904166,84.634,84.6,3.57966785]
[1770713133500,9.84904166,84.634,84.591,10.08641957]
[1770713133698,10.6452,84.631,84.591,10.08641957]
[1770713133891,9.84904166,84.63,84.591,10.08641957]
[1770713134303,10.6461,84.624,84.591,10.08641957]
[1770713134497,9.84904166,84.63,84.591,10.08641957]
[1770713135903,9.84904166,84.624,84.57,3.57734006]
[1770713136097,35.5,84.638,84.57,3.57734006]
[1770713136098,9.84904166,84.619,84.57,3.57734006]
[1770713136300,9.84904166,84.611,84.57,3.57734006]
[1770713138698,9.84904166,84.622,84.58,3.57734006]
[1770713138904,9.84904166,84.622,84.58,13.66375963]
[1770713139700,10.6459,84.626,84.552,115.18]
[1770713139701,10.6459,84.626,84.59,3.57734006]
[1770713139899,9.84904166,84.631,84.591,10.08641957]
[1770713140103,9.84904166,84.631,84.6,3.57734006]
[1770713141403,9.84904166,84.631,84.591,10.08641957]
[1770713142506,9.84904166,84.628,84.581,10.6514]
[1770713142811,9.84904166,84.628,84.59,3.57734006]
[1770713143710,10.6457,84.627,84.59,3.57734006]
[1770713144010,9.84904166,84.626,84.59,3.57734006]
[1770713144310,9.84904166,84.621,84.58,3.57734006]
[1770713144512,9.84904166,84.621,84.571,10.08641957]
[1770713144811,9.84904166,84.621,84.57,3.57734006]
[1770713144812,9.84904166,84.611,84.57,3.57734006]
[1770713145708,10.648,84.61,84.57,3.57734006]
[1770713146012,9.84904166,84.609,84.57,3.57734006]
[1770713146413,9.84904166,84.609,84.57,13.66375963]
[1770713147410,9.84904166,84.621,84.576,10.08641957]
[1770713147714,9.84904166,84.621,84.58,13.66375963]
[1770713148515,9.84904166,84.621,84.581,10.08641957]
[1770713149607,10.6458,84.627,84.581,10.08641957]
[1770713149814,10.6458,84.627,84.59,3.57734006]
[1770713152217,20.30329826,84.635,84.59,13.26795222]
[1770713152413,9.65849826,84.634,84.59,3.57734006]
[1770713152716,9.65849826,84.634,84.584,10.651]
[1770713152913,9.65849826,84.634,84.585,9.69061216]
[1770713153219,9.65849826,84.634,84.591,9.69061216]
[1770713155618,9.65849826,84.634,84.6,3.57734006]
[1770713156711,9.65849826,84.634,84.596,9.69061216]
[1770713160823,9.65849826,84.634,84.6,3.57734006]
[1770713161019,8.0,84.647,84.571,14.62896593]
[1770713161020,9.65849826,84.629,84.571,14.62896593]
[1770713161211,35.5,84.646,84.567,9.69061216]
[1770713161212,9.65849826,84.619,84.57,3.57734006]
[1770713162717,9.65849826,84.618,84.574,10.6523]
[1770713164124,9.65849826,84.625,84.59,3.57876991]
[1770713164624,9.65849826,84.625,84.581,9.69061216]
[1770713165727,9.65849826,84.623,84.581,9.69061216]
[1770713166824,10.6466,84.621,84.581,9.69061216]
[1770713171134,20.30509826,84.621,84.581,9.69061216]
[1770713171926,10.6468,84.619,84.581,9.69061216]
[1770713173932,9.65849826,84.62,84.567,120.8]
[1770713173933,9.65849826,84.609,84.567,120.8]
[1770713174133,19.01153768,84.637,84.55,3.57876991]
[1770713174134,9.65849826,84.599,84.55,3.57876991]
[1770713174438,9.65849826,84.599,84.551,9.69061216]
[1770713175934,20.30909826,84.589,84.551,9.69061216]
[1770713177035,20.30929826,84.587,84.551,9.69061216]
[1770713177437,9.65849826,84.587,84.551,9.69061216]
[1770713182643,9.65849826,84.587,84.55,3.57876991]
[1770713183746,9.65849826,84.587,84.543,9.73033989]
[1770713184847,9.65849826,84.587,84.546,9.73033989]
[1770713185036,9.65849826,84.587,84.551,9.73033989]
[1770713187743,10.6501,84.593,84.551,9.73033989]
[1770713187944,20.12332382,84.593,84.551,9.73033989]
[1770713188241,9.47322382,84.592,84.551,9.73033989]
[1770713188837,9.47322382,84.592,84.56,13.3091098]
[1770713189038,17.47322382,84.599,84.561,9.73033989]
[1770713189234,9.47322382,84.598,84.57,3.57876991]
[1770713189440,9.47322382,84.598,84.56,3.57876991]
[1770713189837,9.47322382,84.598,84.56,13.3091098]
[1770713190037,9.47322382,84.598,84.57,3.57876991]
[1770713190242,9.47322382,84.598,84.561,9.73033989]
[1770713190848,9.47322382,84.611,84.57,3.57876991]
[1770713191142,9.47322382,84.611,84.571,9.73033989]
[1770713194246,9.47322382,84.609,84.56,13.3091098]
[1770713196852,9.47322382,84.609,84.56,13.31005695]
[1770713197553,9.47322382,84.609,84.561,9.73033989]
[1770713197755,9.47322382,84.609,84.57,3.57971706]
[1770713198952,8.0,84.619,84.549,9.73033989]
[1770713198953,9.47322382,84.608,84.549,9.73033989]
[1770713199155,9.47322382,84.599,84.549,9.73033989]
[1770713199552,9.47322382,84.599,84.55,13.31005695]
[1770713200559,9.47322382,84.599,84.551,9.73033989]
[1770713200761,9.47322382,84.597,84.551,9.73033989]
[1770713201358,9.47322382,84.597,84.56,3.57971706]
[1770713201557,8.0,84.599,84.561,9.73033989]
[1770713203761,9.47322382,84.608,84.561,9.73033989]
[1770713203762,9.47322382,84.608,84.57,13.31005695]
[1770713204156,9.47322382,84.608,84.57,9.73033989]
[1770713204455,9.47322382,84.608,84.561,10.6529]
[1770713205162,9.47322382,84.608,84.561,20.38323989]
[1770713205363,9.47322382,84.608,84.571,9.73033989]
[1770713210775,9.47322382,84.608,84.575,10.6511]
[1770713211179,10.646,84.617,84.576,9.95170256]
[1770713211676,18.20664305,84.619,84.576,9.95170256]
[1770713211880,10.20664305,84.618,84.582,9.95170256]
[1770713217077,10.20664305,84.618,84.573,10.6514]
[1770713217277,10.20664305,84.616,84.573,20.60310256]
[1770713217686,10.20664305,84.616,84.57,3.57971706]
[1770713218685,10.20664305,84.611,84.57,3.57971706]
[1770713219079,8.0,84.619,84.562,20.60450256]
[1770713219080,10.20664305,84.609,84.562,9.95170256]
[1770713220277,10.6482,84.599,84.562,9.95170256]
[1770713221088,10.20664305,84.609,84.563,10.6526]
[1770713221884,10.20664305,84.599,84.553,9.95170256]
[1770713222491,10.20664305,84.594,84.553,9.95170256]
[1770713226286,10.6496,84.588,84.553,9.95170256]
[1770713226485,10.20664305,84.587,84.541,9.95170256]
[1770713226786,10.20664305,84.587,84.532,102.56]
[1770713226987,165.563,84.638,84.53,14.62896593]
[1770713226988,10.20664305,84.576,84.533,9.95170256]
[1770713229889,10.20664305,84.572,84.515,20.61040256]
[1770713230095,10.20664305,84.569,84.52,3.57971706]
[1770713230387,10.20664305,84.569,84.514,154.1]
[1770713230388,10.20664305,84.569,84.53,3.57971706]
[1770713230879,10.20664305,84.569,84.521,9.95170256]
[1770713231692,10.20664305,84.569,84.53,3.57971706]
[1770713232293,10.20664305,84.569,84.531,9.95170256]
[1770713232496,10.20664305,84.559,84.509,9.95170256]
[1770713232695,10.20664305,84.549,84.5,3.57971706]
[1770713232886,10.20664305,84.549,84.497,9.95170256]
[1770713233086,10.20664305,84.539,84.497,9.95170256]
[1770713235788,35.5,84.568,84.478,14.62896593]
[1770713235789,10.20664305,84.551,84.501,9.95170256]
[1770713235989,10.20664305,84.549,84.501,9.95170256]
[1770713236893,10.20664305,84.548,84.501,9.95170256]
[1770713237892,10.20664305,84.548,84.486,9.95170256]
[1770713237893,10.20664305,84.533,84.486,9.95170256]
[1770713238790,10.6551,84.545,84.491,9.95170256]
[1770713238997,11.01153768,84.587,84.462,14.62896593]
[1770713238998,10.20664305,84.544,84.501,9.95170256]
[1770713239198,10.20664305,84.544,84.51,3.57971706]
[1770713240203,35.53,84.577,84.52,3.57971706]
[1770713240204,20.63184249,84.554,84.52,3.57971706]
[1770713240697,9.97794249,84.553,84.511,9.93144868]
[1770713244403,8.0,84.569,84.53,3.57971706]
[1770713244404,9.7867812,84.564,84.53,3.57971706]
[1770713244703,8.0,84.569,84.531,9.79147305]
[1770713245695,9.7867812,84.579,84.541,9.79147305]
[1770713248199,3.57971706,84.57,84.52,14.23781706]
[1770713248397,3.57971706,84.57,84.521,9.79147305]
[1770713248605,9.7867812,84.569,84.521,9.79147305]
[1770713251704,9.7867812,84.562,84.521,9.79147305]
[1770713251899,9.7867812,84.562,84.511,10.6592]
[1770713252606,9.7867812,84.559,84.511,10.6592]
[1770713253104,35.53,84.606,84.456,35.53]
[1770713253105,9.7867812,84.571,84.521,9.79147305]
[1770713254211,9.7867812,84.569,84.521,9.79147305]
[1770713258711,17.7867812,84.569,84.521,9.79147305]
[1770713259013,9.7867812,84.568,84.521,9.79147305]
[1770713262012,9.7867812,84.568,84.531,9.79147305]
[1770713263915,9.7867812,84.583,84.541,9.79147305]
[1770713264713,9.7867812,84.583,84.543,20.44657305]
[1770713265108,9.7867812,84.583,84.544,9.79147305]
[1770713267312,9.7867812,84.594,84.547,9.79147305]
[1770713267505,9.7867812,84.594,84.502,21.3208]
[1770713267506,9.7867812,84.594,84.551,9.79147305]
[1770713268814,9.7867812,84.594,84.552,20.44557305]
[1770713269016,9.7867812,84.594,84.553,9.79147305]
[1770713270313,9.7867812,84.594,84.531,107.32]
[1770713270314,9.7867812,84.594,84.543,10.6551]
[1770713270518,9.4562635,84.589,84.544,10.01727545]
[1770713270715,9.4562635,84.589,84.55,3.58339879]
[1770713272819,9.4562635,84.589,84.551,10.6541]
[1770713273627,9.4562635,84.589,84.554,10.01727545]
[1770713273823,9.4562635,84.599,84.554,10.01727545]
[1770713279328,9.4562635,84.598,84.554,10.01727545]
[1770713279828,9.4562635,84.598,84.56,3.58057408]
[1770713280028,9.4562635,84.598,84.561,10.01727545]
[1770713280229,9.4562635,84.621,84.571,10.01727545]
[1770713280424,9.4562635,84.636,84.6,3.58057408]
[1770713281534,9.4562635,84.636,84.591,10.01727545]
[1770713281735,9.4562635,84.636,84.592,10.649]
[1770713286336,9.4562635,84.636,84.592,20.66627545]
[1770713288027,9.4562635,84.636,84.593,10.01727545]
[1770713289545,9.4562635,84.649,84.601,10.01727545]
[1770713290033,9.4562635,84.664,84.621,10.01727545]
[1770713290239,9.4562635,84.664,84.567,165.7004]
[1770713290240,9.4562635,84.679,84.631,10.01727545]
[1770713290429,9.4562635,84.679,84.64,3.58057408]
[1770713290829,9.4562635,84.679,84.631,10.01727545]
[1770713291729,9.4562635,84.676,84.631,10.01727545]
[1770713291933,9.4562635,84.676,84.64,3.58057408]
[1770713293041,9.4562635,84.676,84.631,10.01727545]
[1770713296038,9.4562635,84.676,84.64,3.58057408]
[1770713300135,10.6373,84.686,84.623,94.3]
[1770713300136,10.02170449,84.686,84.65,3.58057408]
[1770713300338,10.02170449,84.686,84.651,10.21741226]
[1770713303946,10.636,84.696,84.651,10.21741226]
[1770713304150,9.48472675,84.695,84.651,10.21741226]
[1770713304640,3.58057408,84.7,84.651,10.21741226]
[1770713304641,9.48472675,84.692,84.651,10.21741226]
[1770713308851,20.12132675,84.691,84.651,10.21741226]
[1770713309251,9.48472675,84.691,84.651,10.21741226]
[1770713311746,9.48472675,84.691,84.652,10.6414]
[1770713312249,9.48472675,84.691,84.653,9.29101146]
[1770713315850,9.48472675,84.691,84.65,3.58057408]
[1770713315851,9.48472675,84.691,84.655,9.29101146]
[1770713316051,9.48472675,84.691,84.66,3.58057408]
[1770713317960,9.48472675,84.691,84.65,3.58057408]
[1770713318449,9.48472675,84.691,84.645,10.6423]
[1770713318649,9.48472675,84.691,84.65,3.58057408]
[1770713318855,9.48472675,84.688,84.65,3.57233225]
[1770713321549,9.48472675,84.688,84.645,10.6423]
[1770713321751,9.48472675,84.681,84.643,9.29101146]
[1770713321952,9.48472675,84.681,84.63,12.86334371]
[1770713322352,9.48472675,84.68,84.633,10.6438]
[1770713322553,9.48472675,84.68,84.64,3.57233225]
[1770713322756,3.57233225,84.66,84.61,3.57233225]
[1770713322958,9.48472675,84.659,84.61,3.57233225]
[1770713323257,3.57233225,84.66,84.61,3.57233225]
[1770713323258,9.48472675,84.654,84.61,3.57233225]
[1770713329154,9.48472675,84.654,84.611,19.93761146]
[1770713329360,9.48472675,84.654,84.62,3.57233225]
[1770713329556,9.48472675,84.654,84.61,3.57233225]
[1770713329757,9.48472675,84.654,84.601,9.29101146]
[1770713329960,10.6418,84.65,84.605,10.6473]
[1770713330155,9.34947723,84.639,84.59,9.70787654]
[1770713330658,10.6444,84.629,84.59,9.70787654]
[1770713330864,10.6444,84.629,84.58,3.57233225]
[1770713330865,9.34947723,84.628,84.58,3.57233225]
[1770713331562,9.34947723,84.628,84.581,9.70787654]
[1770713331965,9.34947723,84.628,84.584,9.70787654]
[1770713332166,9.34947723,84.628,84.59,3.57233225]
[1770713333760,9.34947723,84.628,84.586,9.70787654]
[1770713336066,9.34947723,84.625,84.586,9.70787654]
[1770713336267,9.34947723,84.625,84.577,10.6509]
[1770713336665,9.34947723,84.625,84.58,3.57233225]
[1770713337764,9.34947723,84.622,84.58,3.57233225]
[1770713338269,9.34947723,84.622,84.59,3.57233225]
[1770713338471,9.34947723,84.622,84.582,9.70787654]
[1770713338675,9.34947723,84.631,84.582,9.70787654]
[1770713339260,9.34947723,84.631,84.584,9.70787654]
[1770713339770,9.34947723,84.631,84.587,10.6497]
[1770713340173,9.34947723,84.631,84.587,20.35757654]
[1770713340367,9.34947723,84.631,84.588,9.70787654]
[1770713341670,9.34947723,84.626,84.58,3.57233225]
[1770713342375,9.34947723,84.626,84.581,9.70787654]
[1770713342776,9.34947723,84.624,84.581,9.70787654]
[1770713343673,9.34947723,84.624,84.583,9.70787654]
[1770713344873,9.34947723,84.624,84.589,9.70787654]
[1770713346377,9.34947723,84.624,84.579,10.6506]
[1770713347079,94.32,84.67,84.611,9.70787654]
[1770713347080,9.34947723,84.661,84.611,9.70787654]
[1770713347382,3.57233225,84.67,84.611,9.70787654]
[1770713347383,9.34947723,84.658,84.611,9.70787654]
[1770713348679,10.6419,84.649,84.611,9.70787654]
[1770713351378,9.34947723,84.648,84.61,3.57233225]
[1770713351577,9.34947723,84.648,84.601,10.6479]
[1770713355480,9.34947723,84.639,84.598,9.70787654]
[1770713357185,9.34947723,84.639,84.6,3.57233225]
[1770713357386,9.34947723,84.639,84.568,94.32]
[1770713357387,9.34947723,84.639,84.61,3.57233225]
[1770713358391,19.99147723,84.649,84.61,3.57233225]
[1770713358887,9.34947723,84.648,84.61,3.57233225]
[1770713359688,46.49876456,84.689,84.61,3.57233225]
[1770713359689,9.71815846,84.646,84.61,3.57233225]
[1770713360790,10.6424,84.645,84.61,3.57233225]
[1770713360987,9.71815846,84.644,84.61,3.57233225]
[1770713369797,10.96876456,84.672,84.586,102.66]
[1770713369798,10.19361856,84.659,84.621,10.09935413]
[1770713370796,10.19361856,84.657,84.621,10.09935413]
[1770713371599,10.19361856,84.657,84.613,10.6463]
[1770713372602,10.19361856,84.657,84.62,3.57233225]
[1770713373005,10.19361856,84.655,84.614,10.09935413]
[1770713374707,20.83491856,84.654,84.614,10.09935413]
[1770713374909,10.6413,84.654,84.621,10.09935413]
[1770713377710,10.19361856,84.665,84.63,3.57233225]
[1770713379205,10.19361856,84.665,84.625,10.09935413]
[1770713379802,10.6401,84.664,84.625,10.09935413]
[1770713380112,10.19361856,84.665,84.625,10.09935413]
[1770713382712,10.64,84.664,84.625,10.09935413]
[1770713382907,10.19361856,84.663,84.625,10.09935413]
[1770713383918,10.19361856,84.663,84.62,3.57421256]
[1770713384215,10.19361856,84.657,84.614,10.09935413]
[1770713384607,10.19361856,84.647,84.61,3.57421256]
[1770713385212,10.19361856,84.647,84.605,107.2273]
[1770713385409,10.19361856,84.647,84.606,10.09935413]
[1770713385612,10.19361856,84.647,84.61,3.57421256]
[1770713387810,10.19361856,84.647,84.61,13.67356669]
[1770713391315,10.19361856,84.647,84.61,10.09935413]
[1770713393515,9.86862681,84.657,84.611,9.5476602]
[1770713394720,9.86862681,84.657,84.612,9.5476602]
[1770713400320,9.86862681,84.657,84.619,10.6455]
[1770713400524,9.86862681,84.657,84.621,9.5476602]
[1770713401630,9.86862681,84.656,84.611,9.5476602]
[1770713402727,9.86862681,84.656,84.61,3.57570271]
[1770713402728,9.86862681,84.656,84.617,9.5476602]
[1770713407029,9.86862681,84.651,84.617,9.5476602]
[1770713407230,3.57570271,84.66,84.617,9.5476602]
[1770713407425,3.57570271,84.67,84.617,9.5476602]
[1770713407627,9.86862681,84.668,84.617,9.5476602]
[1770713408734,3.57570271,84.64,84.596,14.62896593]
[1770713408932,9.86862681,84.639,84.594,9.5476602]
[1770713409126,9.86862681,84.629,84.585,9.5476602]
[1770713409533,9.86862681,84.629,84.59,3.57570271]
[1770713410537,9.86862681,84.629,84.59,13.12336291]
[1770713411141,9.86862681,84.629,84.59,9.5476602]
[1770713412737,9.86862681,84.619,84.57,3.57570271]
[1770713413136,9.86862681,84.619,84.564,9.5476602]
[1770713413740,9.86862681,84.618,84.568,20.1997602]
[1770713413936,9.86862681,84.618,84.571,9.5476602]
[1770713414141,9.86862681,84.629,84.581,9.5476602]
[1770713414744,9.86862681,84.628,84.583,9.5476602]
[1770713415636,10.6447,84.627,84.583,9.5476602]
[1770713415840,9.86862681,84.626,84.583,9.5476602]
[1770713416242,9.86862681,84.619,84.583,9.5476602]
[1770713418153,10.645,84.625,84.583,9.5476602]
[1770713418356,94.3,84.661,84.56,116.66896593]
[1770713418357,10.6436,84.636,84.591,9.5476602]
[1770713418550,10.6436,84.636,84.554,22.11597734]
[1770713418551,10.6436,84.636,84.601,9.5476602]
[1770713419052,20.51222681,84.636,84.601,9.5476602]
[1770713419247,9.86862681,84.635,84.601,9.5476602]
[1770713419447,9.86862681,84.633,84.59,13.12336291]
[1770713420056,35.53,84.657,84.579,9.41109081]
[1770713420057,10.20658599,84.619,84.579,9.41109081]
[1770713420751,10.20658599,84.619,84.57,3.57570271]
[1770713420752,10.20658599,84.619,84.581,9.41109081]
[1770713423146,10.20658599,84.619,84.57,14.22740271]
[1770713423356,10.17348691,84.614,84.57,9.53486235]
[1770713424060,10.17348691,84.614,84.571,9.53486235]
[1770713425548,10.6469,84.609,84.571,9.53486235]
[1770713427459,10.17348691,84.614,84.571,9.53486235]
[1770713428452,20.82048691,84.609,84.571,9.53486235]
[1770713428652,10.17348691,84.608,84.571,9.53486235]
[1770713431956,10.17348691,84.638,84.591,9.53486235]
[1770713432754,10.17348691,84.636,84.591,9.53486235]
[1770713433468,10.17348691,84.63,84.591,9.53486235]
[1770713435254,10.17348691,84.629,84.591,9.53486235]
[1770713435966,10.17348691,84.629,84.58,13.11056506]
[1770713436163,10.17348691,84.618,84.57,3.57570271]
[1770713436662,10.17348691,84.618,84.569,9.53486235]
[1770713436663,10.6473,84.606,84.569,9.53486235]
[1770713437167,10.6473,84.606,84.56,3.57570271]
[1770713437168,10.6486,84.596,84.56,3.57570271]
[1770713437463,10.17348691,84.605,84.56,13.11056506]
[1770713438361,10.17348691,84.603,84.56,13.11056506]
[1770713438563,10.17348691,84.603,84.561,9.53486235]
[1770713441366,10.17348691,84.614,84.571,9.53486235]
[1770713442873,20.81998691,84.613,84.571,9.53486235]
[1770713443068,10.17348691,84.612,84.571,9.53486235]
[1770713443873,10.17348691,84.623,84.58,3.5787386]
[1770713444464,10.17348691,84.623,84.572,9.53486235]
[1770713445471,10.17348691,84.609,84.564,9.53486235]
[1770713446570,10.17348691,84.609,84.566,9.53486235]
[1770713446774,10.17348691,84.622,84.571,9.53486235]
[1770713447972,10.17348691,84.618,84.573,9.53486235]
[1770713449876,10.03795903,84.615,84.573,9.53486235]
[1770713450171,10.03795903,84.609,84.561,9.30557893]
[1770713451676,10.6471,84.608,84.561,9.30557893]
[1770713451872,10.03795903,84.607,84.561,9.30557893]
[1770713452475,10.03795903,84.607,84.571,9.30557893]
[1770713452675,10.6458,84.618,84.572,9.30557893]
[1770713452876,10.6458,84.618,84.58,3.5787386]
[1770713453471,10.6458,84.618,84.58,12.88431753]
[1770713453979,10.6458,84.618,84.581,9.30557893]
[1770713455887,10.03795903,84.619,84.581,9.30557893]
[1770713457481,10.6458,84.618,84.581,9.30557893]
[1770713457682,20.68375903,84.618,84.581,9.30557893]
[1770713457873,10.03795903,84.617,84.581,9.30557893]
[1770713459975,10.03795903,84.609,84.561,9.30557893]
[1770713461487,10.03795903,84.599,84.561,9.30557893]
[1770713463982,10.03795903,84.597,84.55,12.88431753]
[1770713464185,10.03795903,84.597,84.551,9.30557893]
[1770713464992,20.68705903,84.592,84.551,9.30557893]
[1770713466778,10.03795903,84.588,84.54,9.30557893]
[1770713467792,10.03795903,84.585,84.54,9.30557893]
[1770713468494,10.03795903,84.585,84.541,9.30557893]
[1770713472191,10.03795903,84.579,84.541,9.30557893]
[1770713472588,10.03795903,84.576,84.53,12.88431753]
[1770713472995,10.03795903,84.559,84.516,9.30557893]
[1770713473703,10.03795903,84.55,84.504,9.30557893]
[1770713474790,10.03795903,84.55,84.507,19.96527893]
[1770713475294,10.03795903,84.55,84.485,115.86896593]
[1770713475295,20.69375903,84.539,84.496,9.30557893]